[Event "Titled Tuesday Blitz June 6 Early 2023"]
[White "Shohat, Yotam"]
[Black "Topalov, Aleksandar"]
[WhiteFideId "2813955"]
[BlackFideId "925659"]
[WhiteElo "2226"]
[BlackElo "2151"]
[Result "1/2-1/2"]
[Round "3"]
[TimeControl "180+2"]
[Date "2023.06.06"]
[WhiteClock "0:01:47"]
[BlackClock "0:00:52"]
[Board "108"]

1. e4 {[%clk 0:03:00]}  e6 {[%clk 0:02:59]} 2. d4 {[%clk 0:02:59]}  d5 {[%clk 0:02:59]} 3. e5 {[%clk 0:02:59]}  Ne7 {[%clk 0:02:59]} 4. c3 {[%clk 0:02:59]}  Qd7 {[%clk 0:02:57]} 5. f4 {[%clk 0:02:58]}  h5 {[%clk 0:02:56]} 6. Bd3 {[%clk 0:02:57]}  g6 {[%clk 0:02:57]} 7. Nf3 {[%clk 0:02:55]}  b6 {[%clk 0:02:56]} 8. Ng5 {[%clk 0:02:55]}  Ba6 {[%clk 0:02:53]} 9. Be3 {[%clk 0:02:56]}  Bxd3 {[%clk 0:02:53]} 10. Qxd3 {[%clk 0:02:57]}  Nf5 {[%clk 0:02:53]} 11. Nd2 {[%clk 0:02:56]}  c5 {[%clk 0:02:53]} 12. Ndf3 {[%clk 0:02:47]}  Nc6 {[%clk 0:02:52]} 13. Bf2 {[%clk 0:02:45]}  Be7 {[%clk 0:02:48]} 14. h3 {[%clk 0:02:42]}  h4 {[%clk 0:02:46]} 15. O-O {[%clk 0:02:35]}  Kf8 {[%clk 0:02:46]} 16. Rfd1 {[%clk 0:02:31]}  cxd4 {[%clk 0:02:46]} 17. Nxd4 {[%clk 0:02:29]}  Ncxd4 {[%clk 0:02:45]} 18. cxd4 {[%clk 0:02:28]}  Kg7 {[%clk 0:02:44]} 19. Rac1 {[%clk 0:02:28]}  Bxg5 {[%clk 0:02:37]} 20. fxg5 {[%clk 0:02:27]}  Rac8 {[%clk 0:02:37]} 21. b3 {[%clk 0:02:05]}  Rxc1 {[%clk 0:02:37]} 22. Rxc1 {[%clk 0:02:05]}  Rc8 {[%clk 0:02:36]} 23. Qd2 {[%clk 0:02:03]}  Rxc1+ {[%clk 0:02:30]} 24. Qxc1 {[%clk 0:02:04]}  Qb5 {[%clk 0:02:25]} 25. Qc7 {[%clk 0:02:02]}  Qe2 {[%clk 0:02:14]} 26. Qd8 {[%clk 0:01:59]}  Qd1+ {[%clk 0:01:08]} 27. Kh2 {[%clk 0:01:59]}  Qf1 {[%clk 0:01:08]} 28. Qf6+ {[%clk 0:01:54]}  Kg8 {[%clk 0:01:08]} 29. Qd8+ {[%clk 0:01:52]}  Kh7 {[%clk 0:01:02]} 30. Qf8 {[%clk 0:01:46]}  Qxf2 {[%clk 0:00:57]} 31. Qxf7+ {[%clk 0:01:45]}  Kh8 {[%clk 0:00:55]} 32. Qf8+ {[%clk 0:01:45]}  Kh7 {[%clk 0:00:54]} 33. Qf7+ {[%clk 0:01:46]}  Kh8 {[%clk 0:00:52]} 34. Qf8+ {[%clk 0:01:47]}  Kh7 {[%clk 0:00:52]} 35. Qf7+ {[%clk 0:01:47]} 1/2-1/2


[Site "https://www.chess.com"]

[Event "Titled Tuesday Blitz June 6 Early 2023"]
[White "Degenbaev, Aziz"]
[Black "Begunov, Konstantin"]
[WhiteFideId "13802640"]
[BlackFideId "4118510"]
[WhiteElo "2152"]
[BlackElo "1993"]
[Result "1-0"]
[Round "3"]
[TimeControl "180+2"]
[Date "2023.06.06"]
[WhiteClock "0:00:05"]
[BlackClock "0:00:08"]
[Board "109"]

1. e4 {[%clk 0:03:00]}  c5 {[%clk 0:02:59]} 2. Nf3 {[%clk 0:02:58]}  d6 {[%clk 0:02:59]} 3. d4 {[%clk 0:02:55]}  cxd4 {[%clk 0:02:59]} 4. Qxd4 {[%clk 0:02:56]}  a6 {[%clk 0:02:58]} 5. Bc4 {[%clk 0:02:54]}  Nc6 {[%clk 0:02:58]} 6. Qd3 {[%clk 0:02:54]}  Nf6 {[%clk 0:02:53]} 7. Nc3 {[%clk 0:02:54]}  Bg4 {[%clk 0:02:41]} 8. Bb3 {[%clk 0:02:25]}  Bxf3 {[%clk 0:02:37]} 9. gxf3 {[%clk 0:02:23]}  Na5 {[%clk 0:02:17]} 10. Be3 {[%clk 0:02:08]}  Nxb3 {[%clk 0:02:17]} 11. axb3 {[%clk 0:02:08]}  g6 {[%clk 0:02:02]} 12. O-O-O {[%clk 0:01:50]}  Bg7 {[%clk 0:02:02]} 13. h4 {[%clk 0:01:08]}  Qa5 {[%clk 0:01:50]} 14. Kb1 {[%clk 0:01:02]}  Rc8 {[%clk 0:01:45]} 15. Bd4 {[%clk 0:00:50]}  O-O {[%clk 0:01:14]} 16. Bxf6 {[%clk 0:00:44]}  Bxf6 {[%clk 0:00:46]} 17. Nd5 {[%clk 0:00:44]}  Qc5 {[%clk 0:00:27]} 18. h5 {[%clk 0:00:38]}  Qxf2 {[%clk 0:00:23]} 19. Rd2 {[%clk 0:00:29]}  Qg3 {[%clk 0:00:20]} 20. Rdh2 {[%clk 0:00:21]}  g5 {[%clk 0:00:17]} 21. Nxf6+ {[%clk 0:00:12]}  exf6 {[%clk 0:00:17]} 22. Rd2 {[%clk 0:00:06]}  Rc6 {[%clk 0:00:17]} 23. Rdd1 {[%clk 0:00:05]}  Qe5 {[%clk 0:00:16]} 24. Rhg1 {[%clk 0:00:04]}  h6 {[%clk 0:00:17]} 25. Qe3 {[%clk 0:00:04]}  Rfc8 {[%clk 0:00:17]} 26. Rd2 {[%clk 0:00:05]}  b5 {[%clk 0:00:16]} 27. f4 {[%clk 0:00:05]}  Qe6 {[%clk 0:00:15]} 28. fxg5 {[%clk 0:00:05]}  fxg5 {[%clk 0:00:15]} 29. Rf2 {[%clk 0:00:05]}  R8c7 {[%clk 0:00:15]} 30. Rgf1 {[%clk 0:00:06]}  Rc5 {[%clk 0:00:15]} 31. Qd4 {[%clk 0:00:06]}  Re5 {[%clk 0:00:15]} 32. Rf6 {[%clk 0:00:06]}  Rxe4 {[%clk 0:00:14]} 33. Qb6 {[%clk 0:00:06]}  Re1+ {[%clk 0:00:12]} 34. Ka2 {[%clk 0:00:06]}  Rxf1 {[%clk 0:00:12]} 35. Rxe6 {[%clk 0:00:06]}  Rxc2 {[%clk 0:00:12]} 36. Qd8+ {[%clk 0:00:06]}  Kg7 {[%clk 0:00:11]} 37. Re8 {[%clk 0:00:07]}  Rcc1 {[%clk 0:00:07]} 38. Rg8+ {[%clk 0:00:07]}  Kh7 {[%clk 0:00:07]} 39. Rh8+ {[%clk 0:00:07]}  Kg7 {[%clk 0:00:08]} 40. Qf8+ {[%clk 0:00:05]}  Kf6 {[%clk 0:00:09]} 41. Qxd6+ {[%clk 0:00:05]}  Kg7 {[%clk 0:00:08]} 42. Qxh6# {[%clk 0:00:05]} 1-0


[Site "https://www.chess.com"]

[Event "Titled Tuesday Blitz June 6 Early 2023"]
[White "Moore, Nicholas"]
[Black "Pajeken, Jakob Leon"]
[WhiteFideId "4303709"]
[BlackFideId "12942839"]
[WhiteElo "2400"]
[BlackElo "2424"]
[Result "1-0"]
[Round "3"]
[TimeControl "180+2"]
[Date "2023.06.06"]
[WhiteClock "0:00:12"]
[BlackClock "0:00:08"]
[Board "110"]

1. c4 {[%clk 0:03:00]}  e5 {[%clk 0:02:57]} 2. g3 {[%clk 0:02:59]}  Nf6 {[%clk 0:02:53]} 3. Bg2 {[%clk 0:02:58]}  c6 {[%clk 0:02:52]} 4. d4 {[%clk 0:02:54]}  Bb4+ {[%clk 0:02:46]} 5. Nc3 {[%clk 0:02:40]}  d6 {[%clk 0:02:41]} 6. e3 {[%clk 0:02:37]}  O-O {[%clk 0:02:33]} 7. Ne2 {[%clk 0:02:36]}  Qe7 {[%clk 0:02:26]} 8. a3 {[%clk 0:02:35]}  Ba5 {[%clk 0:02:26]} 9. b4 {[%clk 0:02:36]}  Bc7 {[%clk 0:02:25]} 10. O-O {[%clk 0:02:28]}  Rd8 {[%clk 0:02:20]} 11. Bb2 {[%clk 0:02:26]}  a6 {[%clk 0:02:14]} 12. Qc2 {[%clk 0:02:25]}  Bd7 {[%clk 0:02:13]} 13. Rfe1 {[%clk 0:02:23]}  Bg4 {[%clk 0:02:12]} 14. f3 {[%clk 0:02:15]}  Bh5 {[%clk 0:02:10]} 15. Rad1 {[%clk 0:02:04]}  Bg6 {[%clk 0:02:10]} 16. e4 {[%clk 0:02:04]}  Nbd7 {[%clk 0:02:08]} 17. Kh1 {[%clk 0:02:03]}  a5 {[%clk 0:02:03]} 18. b5 {[%clk 0:01:30]}  Bb6 {[%clk 0:01:56]} 19. a4 {[%clk 0:01:12]}  exd4 {[%clk 0:01:38]} 20. Nxd4 {[%clk 0:01:11]}  Ne5 {[%clk 0:01:38]} 21. Nce2 {[%clk 0:00:58]}  h5 {[%clk 0:01:32]} 22. Nf4 {[%clk 0:00:57]}  h4 {[%clk 0:01:26]} 23. Nxg6 {[%clk 0:00:56]}  fxg6 {[%clk 0:01:23]} 24. Qb3 {[%clk 0:00:55]}  Bxd4 {[%clk 0:01:21]} 25. Rxd4 {[%clk 0:00:46]}  c5 {[%clk 0:01:20]} 26. Rd2 {[%clk 0:00:43]}  hxg3 {[%clk 0:01:17]} 27. hxg3 {[%clk 0:00:43]}  Qe6 {[%clk 0:01:13]} 28. Bf1 {[%clk 0:00:36]}  Kf7 {[%clk 0:01:08]} 29. Rh2 {[%clk 0:00:36]}  Rh8 {[%clk 0:01:06]} 30. Rd1 {[%clk 0:00:18]}  Rxh2+ {[%clk 0:01:03]} 31. Kxh2 {[%clk 0:00:19]}  Rh8+ {[%clk 0:01:02]} 32. Kg1 {[%clk 0:00:20]}  g5 {[%clk 0:00:56]} 33. Qc2 {[%clk 0:00:17]}  Nxf3+ {[%clk 0:00:53]} 34. Kf2 {[%clk 0:00:15]}  Rh2+ {[%clk 0:00:40]} 35. Bg2 {[%clk 0:00:15]}  Ne5 {[%clk 0:00:17]} 36. Kg1 {[%clk 0:00:14]}  Rh8 {[%clk 0:00:16]} 37. Rf1 {[%clk 0:00:08]}  Qxc4 {[%clk 0:00:14]} 38. Qxc4+ {[%clk 0:00:08]}  Nxc4 {[%clk 0:00:15]} 39. e5 {[%clk 0:00:08]}  Nxb2 {[%clk 0:00:14]} 40. exf6 {[%clk 0:00:08]}  gxf6 {[%clk 0:00:15]} 41. Bxb7 {[%clk 0:00:09]}  c4 {[%clk 0:00:14]} 42. Bd5+ {[%clk 0:00:09]}  Kg6 {[%clk 0:00:14]} 43. b6 {[%clk 0:00:10]}  c3 {[%clk 0:00:14]} 44. b7 {[%clk 0:00:10]}  Nd3 {[%clk 0:00:11]} 45. Be4+ {[%clk 0:00:10]}  Kh5 {[%clk 0:00:09]} 46. Bxd3 {[%clk 0:00:11]}  Kg4 {[%clk 0:00:09]} 47. Rb1 {[%clk 0:00:11]}  Rb8 {[%clk 0:00:09]} 48. Kf2 {[%clk 0:00:11]}  f5 {[%clk 0:00:09]} 49. Be2+ {[%clk 0:00:11]}  Kh3 {[%clk 0:00:08]} 50. Rh1# {[%clk 0:00:12]} 1-0


[Site "https://www.chess.com"]

[Event "Titled Tuesday Blitz June 6 Early 2023"]
[White "Malyi, Viacheslav"]
[Black "zsizsi99"]
[WhiteFideId "14123983"]
[WhiteElo "2291"]
[BlackElo "2397"]
[Result "1/2-1/2"]
[Round "3"]
[TimeControl "180+2"]
[Date "2023.06.06"]
[WhiteClock "0:00:38"]
[BlackClock "0:00:17"]
[Board "111"]

1. e4 {[%clk 0:02:40]}  c5 {[%clk 0:02:58]} 2. Nf3 {[%clk 0:02:40]}  d6 {[%clk 0:02:59]} 3. d4 {[%clk 0:02:41]}  cxd4 {[%clk 0:02:59]} 4. Nxd4 {[%clk 0:02:41]}  Nf6 {[%clk 0:03:00]} 5. Nc3 {[%clk 0:02:42]}  a6 {[%clk 0:03:00]} 6. Bg5 {[%clk 0:02:42]}  Nbd7 {[%clk 0:03:00]} 7. f4 {[%clk 0:02:43]}  Qc7 {[%clk 0:03:00]} 8. Qf3 {[%clk 0:02:43]}  b5 {[%clk 0:03:00]} 9. O-O-O {[%clk 0:02:40]}  Bb7 {[%clk 0:03:01]} 10. Nd5 {[%clk 0:02:41]}  Bxd5 {[%clk 0:02:53]} 11. exd5 {[%clk 0:02:42]}  g6 {[%clk 0:02:53]} 12. Nc6 {[%clk 0:02:37]}  Rc8 {[%clk 0:02:51]} 13. Bd3 {[%clk 0:02:27]}  Nxd5 {[%clk 0:02:43]} 14. Qxd5 {[%clk 0:02:17]}  Qxc6 {[%clk 0:02:43]} 15. Qd4 {[%clk 0:02:17]}  f6 {[%clk 0:02:26]} 16. Rhe1 {[%clk 0:02:11]}  Qc5 {[%clk 0:02:20]} 17. Bxf6 {[%clk 0:02:07]}  Qxd4 {[%clk 0:02:03]} 18. Bxd4 {[%clk 0:02:08]}  Rg8 {[%clk 0:02:03]} 19. g3 {[%clk 0:01:51]}  Kf7 {[%clk 0:02:03]} 20. f5 {[%clk 0:01:50]}  Bg7 {[%clk 0:01:46]} 21. fxg6+ {[%clk 0:01:46]}  hxg6 {[%clk 0:01:46]} 22. Rf1+ {[%clk 0:01:45]}  Nf6 {[%clk 0:01:46]} 23. g4 {[%clk 0:01:40]}  Bh6+ {[%clk 0:01:44]} 24. Kb1 {[%clk 0:01:38]}  e5 {[%clk 0:01:43]} 25. Bc3 {[%clk 0:01:28]}  Bf4 {[%clk 0:01:41]} 26. Bd2 {[%clk 0:01:20]}  g5 {[%clk 0:01:40]} 27. Bf5 {[%clk 0:01:16]}  Rc4 {[%clk 0:01:29]} 28. Bxf4 {[%clk 0:01:15]}  Rxf4 {[%clk 0:01:22]} 29. Rxf4 {[%clk 0:01:07]}  gxf4 {[%clk 0:01:22]} 30. Rxd6 {[%clk 0:01:06]}  Nxg4 {[%clk 0:01:21]} 31. Rxa6 {[%clk 0:00:54]}  Nxh2 {[%clk 0:00:35]} 32. Be6+ {[%clk 0:00:53]}  Kg7 {[%clk 0:00:35]} 33. Bxg8 {[%clk 0:00:54]}  Kxg8 {[%clk 0:00:31]} 34. a4 {[%clk 0:00:52]}  bxa4 {[%clk 0:00:25]} 35. Re6 {[%clk 0:00:48]}  f3 {[%clk 0:00:24]} 36. Rxe5 {[%clk 0:00:47]}  f2 {[%clk 0:00:23]} 37. Rg5+ {[%clk 0:00:35]}  Kh7 {[%clk 0:00:20]} 38. Rf5 {[%clk 0:00:36]}  f1=Q+ {[%clk 0:00:20]} 39. Rxf1 {[%clk 0:00:37]}  Nxf1 {[%clk 0:00:20]} 40. Ka2 {[%clk 0:00:38]}  Ne3 {[%clk 0:00:17]} 1/2-1/2


[Site "https://www.chess.com"]

[Event "Titled Tuesday Blitz June 6 Early 2023"]
[White "Fernandez Siles, Luis"]
[Black "Krutko, Anatoly"]
[WhiteFideId "2209420"]
[BlackFideId "4185862"]
[WhiteElo "2195"]
[BlackElo "2378"]
[Result "0-1"]
[Round "3"]
[TimeControl "180+2"]
[Date "2023.06.06"]
[WhiteClock "0:00:25"]
[BlackClock "0:00:36"]
[Board "114"]

1. d4 {[%clk 0:03:00]}  Nf6 {[%clk 0:02:58]} 2. c4 {[%clk 0:03:00]}  g6 {[%clk 0:02:57]} 3. Nc3 {[%clk 0:03:00]}  Bg7 {[%clk 0:02:57]} 4. e4 {[%clk 0:02:59]}  O-O {[%clk 0:02:57]} 5. Nf3 {[%clk 0:02:59]}  d6 {[%clk 0:02:58]} 6. Be2 {[%clk 0:03:00]}  Bg4 {[%clk 0:02:58]} 7. Be3 {[%clk 0:02:58]}  Nc6 {[%clk 0:02:57]} 8. d5 {[%clk 0:02:47]}  Bxf3 {[%clk 0:02:56]} 9. gxf3 {[%clk 0:02:47]}  Ne5 {[%clk 0:02:57]} 10. f4 {[%clk 0:02:45]}  Ned7 {[%clk 0:02:57]} 11. h4 {[%clk 0:02:44]}  h5 {[%clk 0:02:47]} 12. f5 {[%clk 0:02:41]}  c6 {[%clk 0:02:39]} 13. Rg1 {[%clk 0:02:31]}  Kh7 {[%clk 0:02:40]} 14. fxg6+ {[%clk 0:01:57]}  fxg6 {[%clk 0:02:41]} 15. f4 {[%clk 0:01:57]}  cxd5 {[%clk 0:02:32]} 16. cxd5 {[%clk 0:01:49]}  Rc8 {[%clk 0:02:19]} 17. f5 {[%clk 0:01:48]}  Rxc3 {[%clk 0:02:18]} 18. fxg6+ {[%clk 0:01:46]}  Kh8 {[%clk 0:02:15]} 19. bxc3 {[%clk 0:01:44]}  Nxe4 {[%clk 0:02:10]} 20. Bd3 {[%clk 0:01:27]}  Nef6 {[%clk 0:01:57]} 21. Rg5 {[%clk 0:01:03]}  Ne5 {[%clk 0:01:43]} 22. Rxh5+ {[%clk 0:01:03]}  Kg8 {[%clk 0:01:43]} 23. Bf5 {[%clk 0:00:56]}  Re8 {[%clk 0:01:22]} 24. Be6+ {[%clk 0:00:47]}  Kf8 {[%clk 0:01:22]} 25. Bh6 {[%clk 0:00:43]}  Qa5 {[%clk 0:01:15]} 26. Bxg7+ {[%clk 0:00:38]}  Kxg7 {[%clk 0:01:16]} 27. Rxe5 {[%clk 0:00:29]}  Qxc3+ {[%clk 0:01:14]} 28. Kf1 {[%clk 0:00:28]}  Qxe5 {[%clk 0:01:13]} 29. Rc1 {[%clk 0:00:27]}  Ne4 {[%clk 0:00:38]} 30. Bf7 {[%clk 0:00:26]}  Rh8 {[%clk 0:00:36]} 31. Qf3 {[%clk 0:00:25]}  Nd2+ {[%clk 0:00:36]} 0-1


[Site "https://www.chess.com"]

[Event "Titled Tuesday Blitz June 6 Early 2023"]
[White "Mohammed, Zozek Salah Mohammed"]
[Black "Lymar, Vladislav"]
[WhiteFideId "4803361"]
[BlackFideId "14162180"]
[WhiteElo "2211"]
[BlackElo "2234"]
[Result "1-0"]
[Round "3"]
[TimeControl "180+2"]
[Date "2023.06.06"]
[WhiteClock "0:00:09"]
[BlackClock "0:00:03"]
[Board "115"]

1. d4 {[%clk 0:02:57]}  d5 {[%clk 0:02:57]} 2. Nf3 {[%clk 0:02:58]}  c5 {[%clk 0:02:56]} 3. g3 {[%clk 0:02:56]}  Nc6 {[%clk 0:02:56]} 4. Bg2 {[%clk 0:02:56]}  Nf6 {[%clk 0:02:57]} 5. O-O {[%clk 0:02:56]}  e6 {[%clk 0:02:55]} 6. c4 {[%clk 0:02:56]}  Be7 {[%clk 0:02:56]} 7. cxd5 {[%clk 0:02:56]}  exd5 {[%clk 0:02:56]} 8. Nc3 {[%clk 0:02:54]}  O-O {[%clk 0:02:56]} 9. Bg5 {[%clk 0:02:53]}  c4 {[%clk 0:02:56]} 10. b3 {[%clk 0:02:52]}  Qa5 {[%clk 0:02:38]} 11. Qd2 {[%clk 0:02:41]}  Be6 {[%clk 0:01:38]} 12. Rfd1 {[%clk 0:02:31]}  Rad8 {[%clk 0:01:20]} 13. bxc4 {[%clk 0:02:29]}  dxc4 {[%clk 0:01:21]} 14. e4 {[%clk 0:02:30]}  h6 {[%clk 0:01:16]} 15. Bxf6 {[%clk 0:01:39]}  Bxf6 {[%clk 0:01:16]} 16. Ne2 {[%clk 0:01:38]}  Qxd2 {[%clk 0:01:07]} 17. Rxd2 {[%clk 0:01:39]}  b5 {[%clk 0:01:07]} 18. Rb1 {[%clk 0:01:37]}  b4 {[%clk 0:01:07]} 19. d5 {[%clk 0:01:36]}  c3 {[%clk 0:01:06]} 20. Rc2 {[%clk 0:01:29]}  Bxd5 {[%clk 0:00:35]} 21. exd5 {[%clk 0:01:30]}  Rxd5 {[%clk 0:00:36]} 22. Ne1 {[%clk 0:01:17]}  Nd4 {[%clk 0:00:22]} 23. Bxd5 {[%clk 0:01:15]}  Nxc2 {[%clk 0:00:22]} 24. Nxc2 {[%clk 0:01:15]}  Rd8 {[%clk 0:00:22]} 25. Nxb4 {[%clk 0:00:54]}  a5 {[%clk 0:00:21]} 26. Be4 {[%clk 0:00:51]}  axb4 {[%clk 0:00:17]} 27. Rxb4 {[%clk 0:00:52]}  g6 {[%clk 0:00:13]} 28. Rc4 {[%clk 0:00:48]}  Rd1+ {[%clk 0:00:08]} 29. Kg2 {[%clk 0:00:47]}  Re1 {[%clk 0:00:09]} 30. Kf3 {[%clk 0:00:44]}  g5 {[%clk 0:00:08]} 31. h3 {[%clk 0:00:40]}  h5 {[%clk 0:00:08]} 32. Nxc3 {[%clk 0:00:35]}  g4+ {[%clk 0:00:08]} 33. hxg4 {[%clk 0:00:34]}  hxg4+ {[%clk 0:00:09]} 34. Kf4 {[%clk 0:00:34]}  Rc1 {[%clk 0:00:09]} 35. Nd5 {[%clk 0:00:25]}  Rxc4 {[%clk 0:00:09]} 36. Nxf6+ {[%clk 0:00:25]}  Kg7 {[%clk 0:00:09]} 37. Nxg4 {[%clk 0:00:26]}  Ra4 {[%clk 0:00:08]} 38. Ne5 {[%clk 0:00:23]}  Rxa2 {[%clk 0:00:08]} 39. f3 {[%clk 0:00:22]}  f6 {[%clk 0:00:07]} 40. Ng4 {[%clk 0:00:21]}  Ra5 {[%clk 0:00:08]} 41. Ne3 {[%clk 0:00:21]}  Rb5 {[%clk 0:00:08]} 42. g4 {[%clk 0:00:21]}  Rc5 {[%clk 0:00:09]} 43. Nf5+ {[%clk 0:00:22]}  Kf7 {[%clk 0:00:08]} 44. Nd6+ {[%clk 0:00:21]}  Ke6 {[%clk 0:00:08]} 45. Nf5 {[%clk 0:00:20]}  Kf7 {[%clk 0:00:08]} 46. Ne3 {[%clk 0:00:20]}  Ke6 {[%clk 0:00:07]} 47. Kg3 {[%clk 0:00:20]}  Rc3 {[%clk 0:00:07]} 48. Kf2 {[%clk 0:00:21]}  Ra3 {[%clk 0:00:07]} 49. f4 {[%clk 0:00:21]}  Ra2+ {[%clk 0:00:06]} 50. Kf3 {[%clk 0:00:21]}  Ra3 {[%clk 0:00:07]} 51. g5 {[%clk 0:00:17]}  fxg5 {[%clk 0:00:07]} 52. fxg5 {[%clk 0:00:17]}  Ke5 {[%clk 0:00:08]} 53. g6 {[%clk 0:00:15]}  Ra7 {[%clk 0:00:05]} 54. Ng4+ {[%clk 0:00:13]}  Ke6 {[%clk 0:00:05]} 55. Kf4 {[%clk 0:00:14]}  Rc7 {[%clk 0:00:06]} 56. Kg5 {[%clk 0:00:14]}  Rc1 {[%clk 0:00:03]} 57. Bf5+ {[%clk 0:00:13]}  Ke7 {[%clk 0:00:03]} 58. Kh6 {[%clk 0:00:11]}  Kf8 {[%clk 0:00:03]} 59. g7+ {[%clk 0:00:11]}  Kf7 {[%clk 0:00:03]} 60. Be6+ {[%clk 0:00:09]}  Kxe6 {[%clk 0:00:03]} 61. g8=Q+ {[%clk 0:00:09]}  Kf5 {[%clk 0:00:03]} 62. Qg5+ {[%clk 0:00:08]}  Ke4 {[%clk 0:00:03]} 63. Qxc1 {[%clk 0:00:09]} 1-0


[Site "https://www.chess.com"]

[Event "Titled Tuesday Blitz June 6 Early 2023"]
[White "Machidon, Cristi"]
[Black "Polanco Nunez, Yoel Estarling"]
[WhiteFideId "13904590"]
[BlackFideId "6401783"]
[WhiteElo "2355"]
[BlackElo "2132"]
[Result "1-0"]
[Round "3"]
[TimeControl "180+2"]
[Date "2023.06.06"]
[WhiteClock "0:00:29"]
[BlackClock "0:00:44"]
[Board "118"]

1. e4 {[%clk 0:03:00]}  e5 {[%clk 0:02:59]} 2. Nf3 {[%clk 0:03:00]}  Nc6 {[%clk 0:02:59]} 3. Bb5 {[%clk 0:03:00]}  a6 {[%clk 0:03:00]} 4. Ba4 {[%clk 0:03:00]}  Nf6 {[%clk 0:03:00]} 5. O-O {[%clk 0:03:00]}  Be7 {[%clk 0:03:00]} 6. Re1 {[%clk 0:03:00]}  b5 {[%clk 0:03:00]} 7. Bb3 {[%clk 0:03:00]}  d6 {[%clk 0:03:00]} 8. c3 {[%clk 0:02:59]}  O-O {[%clk 0:02:59]} 9. h3 {[%clk 0:02:59]}  Bb7 {[%clk 0:03:00]} 10. d4 {[%clk 0:02:46]}  Re8 {[%clk 0:03:00]} 11. Ng5 {[%clk 0:02:38]}  Rf8 {[%clk 0:02:59]} 12. Nf3 {[%clk 0:02:35]}  Re8 {[%clk 0:02:59]} 13. a4 {[%clk 0:02:25]}  Bf8 {[%clk 0:02:55]} 14. d5 {[%clk 0:02:00]}  Ne7 {[%clk 0:02:53]} 15. Nbd2 {[%clk 0:01:57]}  c6 {[%clk 0:02:51]} 16. dxc6 {[%clk 0:01:56]}  Bxc6 {[%clk 0:02:50]} 17. axb5 {[%clk 0:01:53]}  axb5 {[%clk 0:02:49]} 18. Rxa8 {[%clk 0:01:54]}  Qxa8 {[%clk 0:02:49]} 19. Ng5 {[%clk 0:01:45]}  d5 {[%clk 0:02:49]} 20. exd5 {[%clk 0:01:45]}  Nexd5 {[%clk 0:02:49]} 21. Nde4 {[%clk 0:01:42]}  Nxe4 {[%clk 0:02:41]} 22. Nxe4 {[%clk 0:01:37]}  h6 {[%clk 0:02:38]} 23. Qf3 {[%clk 0:01:33]}  Qb7 {[%clk 0:02:17]} 24. Bxh6 {[%clk 0:00:59]}  gxh6 {[%clk 0:01:53]} 25. Bxd5 {[%clk 0:00:59]}  Bxd5 {[%clk 0:01:54]} 26. Nf6+ {[%clk 0:00:59]}  Kh8 {[%clk 0:01:55]} 27. Qxd5 {[%clk 0:00:54]}  Qxd5 {[%clk 0:01:46]} 28. Nxd5 {[%clk 0:00:55]}  Bg7 {[%clk 0:01:43]} 29. Kf1 {[%clk 0:00:50]}  Rd8 {[%clk 0:01:38]} 30. Rd1 {[%clk 0:00:48]}  f5 {[%clk 0:01:33]} 31. Ke2 {[%clk 0:00:48]}  e4 {[%clk 0:01:25]} 32. Ne7 {[%clk 0:00:41]}  Rxd1 {[%clk 0:00:52]} 33. Kxd1 {[%clk 0:00:42]}  f4 {[%clk 0:00:50]} 34. Ng6+ {[%clk 0:00:42]}  Kh7 {[%clk 0:00:50]} 35. Nxf4 {[%clk 0:00:43]}  Be5 {[%clk 0:00:50]} 36. Nd5 {[%clk 0:00:36]}  Kg6 {[%clk 0:00:49]} 37. Ke2 {[%clk 0:00:36]}  Kf5 {[%clk 0:00:49]} 38. g4+ {[%clk 0:00:31]}  Ke6 {[%clk 0:00:48]} 39. Ne3 {[%clk 0:00:32]}  Kd6 {[%clk 0:00:44]} 40. Nf5+ {[%clk 0:00:29]} 1-0


[Site "https://www.chess.com"]

[Event "Titled Tuesday Blitz June 6 Early 2023"]
[White "Poltorak, Sebastian"]
[Black "Llanos, Guillermo"]
[WhiteFideId "1199498"]
[BlackFideId "100358"]
[WhiteElo "2195"]
[BlackElo "2210"]
[Result "1-0"]
[Round "3"]
[TimeControl "180+2"]
[Date "2023.06.06"]
[WhiteClock "0:01:44"]
[BlackClock "0:00:52"]
[Board "119"]

1. d4 {[%clk 0:03:00]}  Nf6 {[%clk 0:02:55]} 2. c4 {[%clk 0:02:52]}  b6 {[%clk 0:02:53]} 3. Nf3 {[%clk 0:02:50]}  Bb7 {[%clk 0:02:51]} 4. a3 {[%clk 0:02:50]}  c5 {[%clk 0:02:49]} 5. Nc3 {[%clk 0:02:46]}  cxd4 {[%clk 0:02:46]} 6. Nxd4 {[%clk 0:02:46]}  Nc6 {[%clk 0:02:40]} 7. Bg5 {[%clk 0:02:45]}  e6 {[%clk 0:02:36]} 8. Ndb5 {[%clk 0:02:42]}  h6 {[%clk 0:02:27]} 9. Bh4 {[%clk 0:02:40]}  g5 {[%clk 0:02:26]} 10. Bg3 {[%clk 0:02:40]}  Rc8 {[%clk 0:02:15]} 11. Nd6+ {[%clk 0:02:39]}  Bxd6 {[%clk 0:02:14]} 12. Bxd6 {[%clk 0:02:39]}  Na5 {[%clk 0:02:11]} 13. e3 {[%clk 0:02:27]}  Nxc4 {[%clk 0:02:07]} 14. Bxc4 {[%clk 0:02:12]}  Rxc4 {[%clk 0:02:06]} 15. O-O {[%clk 0:02:12]}  Nd5 {[%clk 0:01:49]} 16. Nxd5 {[%clk 0:01:53]}  Bxd5 {[%clk 0:01:48]} 17. Rc1 {[%clk 0:01:54]}  Qc8 {[%clk 0:01:44]} 18. Qd4 {[%clk 0:01:49]}  Rg8 {[%clk 0:00:53]} 19. Rxc4 {[%clk 0:01:47]}  Bxc4 {[%clk 0:00:52]} 20. Rc1 {[%clk 0:01:46]}  b5 {[%clk 0:00:52]} 21. b3 {[%clk 0:01:44]} 1-0


[Site "https://www.chess.com"]